fUSD/lending_fUSD_20260225
["ID","MTS","AMOUNT","RATE_DAILY","PERIOD"]
[406624522,1771985447020,-4000.0,0.00014408,2]
[406624523,1771985447029,-23951.21763554,0.000145,2]
[406624524,1771985447039,-311.94,0.00014583,2]
[406624525,1771985447048,-3162.0,0.00014631,2]
[406624526,1771985447058,-12649.0,0.00014631,2]
[406624527,1771985447068,-151.0,0.00014634,2]
[406624528,1771985447078,-151.0,0.00014634,2]
[406624529,1771985447088,-6155.0,0.00014635,2]
[406624530,1771985447097,-600.0,0.00014648,2]
[406624531,1771985447106,-589.68,0.00014648,2]
[406624532,1771985447115,-860.80936961,0.00014893,2]
[406624533,1771985447125,-6200.0,0.000149,5]
[406624534,1771985447134,-4780.70328578,0.00014903,2]
[406624535,1771985447143,-371.021768,0.0001494,7]
[406624536,1771985447155,-4500.0,0.00014956,2]
[406624537,1771985447164,-2057.23131483,0.00015,2]
[406624538,1771985447173,-8008.97204016,0.00015,2]
[406624539,1771985447183,-250.0,0.00015,2]
[406624540,1771985447193,-10749.777881,0.00015014,7]
[406624541,1771985447203,-843.003731,0.00015027,7]
[406624542,1771985447212,-900.0,0.00015068,2]
[406624543,1771985447222,-2225.45,0.00015068,2]
[406624544,1771985447231,-913.996712,0.00015068,2]
[406624545,1771985447240,-913.996712,0.00015068,2]
[406624546,1771985447249,-913.996712,0.00015068,2]
[406624547,1771985447259,-913.996712,0.00015068,2]
[406624548,1771985447268,-913.996712,0.00015068,2]
[406624549,1771985447278,-913.996712,0.00015068,2]
[406624550,1771985447287,-913.996712,0.00015068,2]
[406624551,1771985447297,-913.996712,0.00015068,2]
[406624552,1771985447306,-913.996712,0.00015068,2]
[406624553,1771985447315,-913.996712,0.00015068,2]
[406624554,1771985447329,-913.996712,0.00015068,2]
[406624555,1771985447338,-913.996712,0.00015068,2]
[406624556,1771985447347,-913.996712,0.00015068,2]
[406624557,1771985447356,-913.996712,0.00015068,2]
[406624558,1771985447366,-913.996712,0.00015068,2]
[406624559,1771985447375,-913.996712,0.00015068,2]
[406624560,1771985447384,-500.0,0.000151,2]
[406624561,1771985447394,-500.0,0.000151,2]
[406624562,1771985447403,-500.0,0.000151,2]
[406624563,1771985447413,-500.0,0.000151,2]
[406624564,1771985447423,-500.0,0.000151,2]
[406624565,1771985447432,-500.0,0.000151,2]
[406624566,1771985447441,-322.62415404,0.000151,2]
[406624567,1771985447451,-500.0,0.000151,2]
[406624568,1771985447460,-500.0,0.000151,2]
[406624569,1771985447469,-500.0,0.000151,2]
[406624570,1771985447479,-500.0,0.000151,2]
[406624571,1771985447488,-500.0,0.000151,2]
[406624572,1771985447497,-500.0,0.000151,2]
[406624573,1771985447507,-500.0,0.000151,2]
[406624574,1771985447516,-500.0,0.000151,2]
[406624575,1771985447526,-500.0,0.000151,2]
[406624576,1771985447535,-500.0,0.000151,2]
[406624577,1771985447546,-164.0916403,0.000151,2]
[406624578,1771985447555,-162.16158379,0.000151,2]
[406624579,1771985447564,-513.46614035,0.000151,2]
[406624580,1771985447574,-503.68331268,0.000151,2]
[406624581,1771985447584,-500.0,0.000151,2]
[406624582,1771985447594,-249.90455699,0.000151,2]
[406624583,1771985447603,-500.0,0.000151,2]
[406624584,1771985447613,-500.0,0.000151,2]
[406624585,1771985447622,-500.0,0.000151,2]
[406624586,1771985447632,-508.11602332,0.000151,2]
[406624587,1771985447641,-500.0,0.000151,2]
[406624588,1771985447651,-500.0,0.000151,2]
[406624589,1771985447660,-500.0,0.000151,2]
[406624590,1771985447669,-304.47739621,0.000151,2]
[406624591,1771985447679,-500.0,0.000151,2]
[406624592,1771985447688,-500.0,0.000151,2]
[406624593,1771985447698,-500.0,0.000151,2]
[406624594,1771985447708,-500.0,0.000151,2]
[406624595,1771985447718,-500.0,0.000151,2]
[406624596,1771985447728,-500.0,0.000151,2]
[406624597,1771985447737,-168.650333,0.000151,2]
[406624598,1771985447746,-163.42284302,0.000151,2]
[406624599,1771985447756,-500.0,0.000151,2]
[406624600,1771985447765,-488.06207325,0.000151,2]
[406624601,1771985447775,-209.6674551,0.000151,2]
[406624602,1771985447785,-170.41717841,0.000151,2]
[406624603,1771985447796,-500.0,0.000151,2]
[406624604,1771985447805,-166.92876299,0.000151,2]
[406624605,1771985447816,-162.88091229,0.000151,2]
[406624606,1771985447825,-500.0,0.000151,2]
[406624607,1771985447834,-500.0,0.000151,2]
[406624608,1771985447844,-500.0,0.000151,2]
[406624609,1771985447854,-503.44014627,0.000151,2]
[406624610,1771985447863,-500.0,0.000151,2]
[406624611,1771985447873,-500.0,0.000151,2]
[406624612,1771985447883,-500.0,0.000151,2]
[406624613,1771985447892,-162.05571532,0.000151,2]
[406624614,1771985447902,-187.13080232,0.000151,2]
[406624615,1771985447912,-599.57473592,0.000151,2]
[406624616,1771985447921,-913.996712,0.000151,2]
[406624617,1771985447931,-913.996712,0.000151,2]
[406624618,1771985447940,-913.996712,0.000151,2]
[406624619,1771985447950,-913.996704,0.000151,2]
[406624620,1771985447959,-151.0,0.000151,2]
[406624621,1771985447969,-151.0,0.000151,2]
[406624622,1771985447979,-24870.48091335,0.0001512,2]
[406624623,1771985448750,-845.71741582,0.0001512,2]
[406624624,1771985448765,-3517.55755557,0.0001512,2]
[406624625,1771985448809,-384.59137219,0.0001512,2]
[406624626,1771985448820,-90234.07806391,0.0001512,2]
[406624627,1771985448829,-929.31624,0.0001512,2]
[406624628,1771985448838,-929.31624,0.0001512,2]
[406624629,1771985448848,-929.31624,0.0001512,2]
[406624630,1771985448857,-929.316237,0.0001512,2]
[406624631,1771985448866,-150.0,0.0001517,7]
[406624632,1771985448876,-155.0,0.00015178,2]
[406624633,1771985448885,-1517.64,0.000153,2]
[406624634,1771985448894,-510.0565306,0.000154,2]
[406624635,1771985448905,-5000.0,0.00015504,2]
[406624636,1771985448914,-1000.0,0.00015507,2]
[406624637,1771985448923,-23951.21763554,0.00015633,2]
[406624638,1771985448932,-1000.0,0.00015648,2]
[406624639,1771985448941,-1030.65903582,0.00015648,2]
[406624640,1771985448951,-1000.0,0.00015648,2]
[406624641,1771985448964,-1000.0,0.00015648,2]
[406624642,1771985448973,-703.22212823,0.00015648,2]
[406624643,1771985448983,-1000.0,0.00015648,2]
[406624644,1771985448993,-1010.5011087,0.00015648,2]
[406624645,1771985449002,-399.43840669,0.00015648,2]
[406624646,1771985449012,-1000.0,0.00015648,2]
[406624647,1771985449022,-506.87140807,0.00015648,2]
[406624648,1771985449031,-1000.0,0.00015648,2]
[406624649,1771985449041,-1000.0,0.00015648,2]
[406624650,1771985449052,-903.17405317,0.00015648,2]
[406624651,1771985449062,-1000.0,0.00015648,2]
[406624652,1771985449072,-1000.0,0.00015648,2]
[406624653,1771985449081,-1000.0,0.00015648,2]
[406624654,1771985449090,-1000.0,0.00015648,2]
[406624655,1771985449099,-999.34149808,0.00015648,2]
[406624656,1771985449109,-1029.87944688,0.00015648,2]
[406624657,1771985449118,-159.81513896,0.00015648,2]
[406624658,1771985449127,-522.83185433,0.00015648,2]
[406624659,1771985449136,-1000.0,0.00015648,2]
[406624660,1771985449148,-1015.78481328,0.00015648,2]
[406624661,1771985449159,-437.19233783,0.00015648,2]
[406624662,1771985449167,-1093.26628139,0.00015648,2]
[406624663,1771985449177,-1000.0,0.00015648,2]
[406624664,1771985449187,-1000.0,0.00015648,2]
[406624665,1771985449197,-1000.0,0.00015648,2]
[406624666,1771985449207,-1000.0,0.00015648,2]
[406624667,1771985449216,-584.0452088,0.00015648,2]
[406624668,1771985449228,-1000.0,0.00015648,2]
[406624669,1771985449236,-1000.0,0.00015648,2]
[406624670,1771985449246,-1000.0,0.00015648,2]
[406624671,1771985449255,-1000.0,0.00015648,2]
[406624672,1771985449264,-1000.0,0.00015648,2]
[406624673,1771985449273,-1000.0,0.00015648,2]
[406624674,1771985449283,-403.19901171,0.00015648,2]
[406624675,1771985449292,-151.0,0.00015648,2]
[406624676,1771985449302,-151.0,0.00015648,2]
[406624677,1771985449311,-2225.45,0.00015753,2]
[406624678,1771985449320,-462.93,0.00015804,2]
[406624679,1771985449329,-2247.75609779,0.00015807,2]
[406624680,1771985449339,-1000.0,0.00015895,2]
[406624681,1771985449349,-154.39192677,0.000159,2]
[406624682,1771985449359,-150.0,0.000159,2]
[406624683,1771985449368,-150.0,0.000159,2]
[406624684,1771985449377,-150.0,0.000159,2]
[406624685,1771985449387,-150.0,0.000159,2]
[406624686,1771985449396,-151.0,0.00015926,2]
[406624687,1771985449406,-419.22118993,0.00016,2]
[406624688,1771985449415,-2074.0859741,0.00016,2]
[406624689,1771985449424,-462.93,0.00016002,2]
[406624690,1771985449433,-618.0,0.00016038,2]
[406624691,1771985449442,-3497.0,0.00016038,2]
[406624692,1771985449451,-1340.0,0.00016038,2]
[406624693,1771985449461,-1040.0,0.00016038,2]
[406624694,1771985449470,-1277.0,0.00016041,2]
[406624695,1771985449479,-268.953,0.00016041,2]
[406624696,1771985449488,-920.0,0.00016051,2]
[406624697,1771985449496,-1217.541,0.00016051,2]
[406624698,1771985449505,-463.615,0.00016051,2]
[406624699,1771985449514,-5982.0,0.00016051,2]
[406624700,1771985449522,-2500.793,0.00016051,2]
[406624701,1771985449531,-4580.29736626,0.00016052,2]
[406624702,1771985449540,-4427.0,0.00016094,2]
[406624703,1771985449549,-17709.0,0.00016094,2]
[406624704,1771985449558,-2435.0,0.000161,2]
[406624705,1771985449567,-9999.99,0.00016116,2]
[406624706,1771985449576,-1500.0,0.00016196,2]
[406624707,1771985449585,-1500.0,0.00016196,2]
[406624708,1771985449595,-1500.0,0.00016196,2]
[406624709,1771985449603,-817.40894872,0.00016196,2]
[406624710,1771985449613,-1391.46068943,0.00016196,2]
[406624711,1771985449622,-1503.41634664,0.00016196,2]
[406624712,1771985449632,-1500.0,0.00016196,2]
[406624713,1771985449642,-608.2307877,0.00016196,2]
[406624714,1771985449651,-347.20910162,0.00016196,2]
[406624715,1771985449661,-1500.0,0.00016196,2]
[406624716,1771985449671,-1500.0,0.00016196,2]
[406624717,1771985449681,-604.03799379,0.00016196,2]
[406624718,1771985449690,-1500.0,0.00016196,2]
[406624719,1771985449699,-476.51508357,0.00016196,2]
[406624720,1771985449709,-1500.0,0.00016196,2]
[406624721,1771985449718,-1500.0,0.00016196,2]
[406624722,1771985449727,-660.84955066,0.00016196,2]
[406624723,1771985449736,-1500.0,0.00016196,2]
[406624724,1771985449746,-1009.02103612,0.00016196,2]
[406624725,1771985449755,-1500.0,0.00016196,2]
[406624726,1771985449764,-1500.0,0.00016196,2]
[406624727,1771985449773,-954.30919331,0.00016196,2]
[406624728,1771985449782,-462.93,0.00016199,2]
[406624729,1771985449791,-5000.00667959,0.000162,5]
[406624730,1771985449801,-269.0,0.0001627,2]
[406624731,1771985449810,-200.0,0.0001627,2]
[406624732,1771985449819,-200.0,0.0001627,2]
[406624733,1771985449828,-250.0,0.0001627,2]
[406624734,1771985449837,-233.59,0.0001627,2]
[406624735,1771985449846,-172.0,0.0001627,2]
[406624736,1771985449856,-199.177,0.0001627,2]
[406624737,1771985449865,-160.658,0.0001627,2]
[406624738,1771985449874,-250.0,0.0001627,2]
[406624739,1771985449883,-192.427,0.0001627,2]
[406624740,1771985449893,-165.11,0.0001627,2]
[406624741,1771985449902,-250.0,0.0001627,2]
[406624742,1771985449911,-213.673,0.0001627,2]
[406624743,1771985449920,-176.0,0.0001627,2]
[406624744,1771985449929,-235.458,0.0001627,2]
[406624745,1771985449939,-1000.0,0.00016282,2]
[406624746,1771985449948,-200.0,0.0001634,2]
[406624747,1771985449957,-722.0,0.00016393,2]
[406624748,1771985449966,-150.0,0.00016393,2]
[406624749,1771985449976,-272.0,0.00016393,2]
[406624750,1771985449985,-462.93,0.00016397,2]
[406624751,1771985449994,-4780.70328578,0.00016401,2]
[406624752,1771985450004,-900.0,0.00016438,2]
[406624753,1771985450014,-2225.45,0.00016438,2]
[406624754,1771985450024,-150.0,0.00016438,2]
[406624755,1771985450033,-151.0,0.00016438,2]
[406624756,1771985450044,-151.0,0.00016438,2]
[406624757,1771985450053,-151.0,0.00016438,2]
[406624758,1771985450063,-151.0,0.00016438,2]
[406624759,1771985450072,-218.347374,0.00016438,2]
[406624760,1771985450081,-277.25086,0.00016438,2]
[406624761,1771985450091,-277.25086,0.00016438,2]
[406624762,1771985450101,-277.25086,0.00016438,2]
[406624763,1771985450111,-277.25086,0.00016438,2]
[406624764,1771985450120,-277.25086,0.00016438,2]
[406624765,1771985450130,-277.25086,0.00016438,2]
[406624766,1771985450139,-277.25086,0.00016438,2]
[406624767,1771985450150,-277.25086,0.00016438,2]
[406624768,1771985450160,-277.25086,0.00016438,2]
[406624769,1771985450170,-277.25086,0.00016438,2]
[406624770,1771985450179,-277.25086,0.00016438,2]
[406624771,1771985450190,-277.25086,0.00016438,2]
[406624772,1771985450199,-277.25086,0.00016438,2]
[406624773,1771985450208,-277.25086,0.00016438,2]
[406624774,1771985450218,-277.25086,0.00016438,2]
[406624775,1771985450228,-277.25086,0.00016438,2]
[406624776,1771985450237,-277.25086,0.00016438,2]
[406624777,1771985450246,-277.25086,0.00016438,2]
[406624778,1771985450255,-277.25086,0.00016438,2]
[406624779,1771985450265,-277.250855,0.00016438,2]
[406624780,1771985450274,-151.0,0.00016438,2]
[406624781,1771985450283,-151.0,0.00016438,2]
[406624782,1771985450293,-152.008817,0.00016438,2]
[406624783,1771985450302,-241.584707,0.00016438,2]
[406624784,1771985450311,-241.584707,0.00016438,2]
[406624785,1771985450321,-241.584707,0.00016438,2]
[406624786,1771985450330,-241.584707,0.00016438,2]
[406624787,1771985450340,-241.584707,0.00016438,2]
[406624788,1771985450350,-241.584707,0.00016438,2]
[406624789,1771985450359,-241.584707,0.00016438,2]
[406624790,1771985450369,-241.584707,0.00016438,2]
[406624791,1771985450378,-241.584707,0.00016438,2]
[406624792,1771985450387,-241.584707,0.00016438,2]
[406624793,1771985450397,-241.584707,0.00016438,2]
[406624794,1771985450406,-241.584707,0.00016438,2]
[406624795,1771985450416,-241.584707,0.00016438,2]
[406624796,1771985450425,-241.584707,0.00016438,2]
[406624797,1771985450435,-241.584707,0.00016438,2]
[406624798,1771985450444,-241.584707,0.00016438,2]
[406624799,1771985450453,-241.584707,0.00016438,2]
[406624800,1771985450463,-241.584707,0.00016438,2]
[406624801,1771985450473,-241.584707,0.00016438,2]
[406624802,1771985450483,-241.584712,0.00016438,2]
[406624803,1771985450492,-170.300736,0.00016438,2]
[406624804,1771985450501,-170.300736,0.00016438,2]
[406624805,1771985450510,-170.300736,0.00016438,2]
[406624806,1771985450520,-170.300736,0.00016438,2]
[406624807,1771985450529,-170.300736,0.00016438,2]
[406624808,1771985450539,-170.300736,0.00016438,2]
[406624809,1771985450552,-170.300736,0.00016438,2]
[406624810,1771985450562,-170.300736,0.00016438,2]
[406624811,1771985450571,-170.300736,0.00016438,2]
[406624812,1771985450580,-170.300736,0.00016438,2]
[406624813,1771985450590,-170.300736,0.00016438,2]
[406624814,1771985450599,-170.300736,0.00016438,2]
[406624815,1771985450608,-170.300736,0.00016438,2]
[406624816,1771985450618,-170.300736,0.00016438,2]
[406624817,1771985450627,-170.300736,0.00016438,2]
[406624818,1771985450637,-170.300736,0.00016438,2]
[406624819,1771985450646,-170.300736,0.00016438,2]
[406624820,1771985450656,-170.300736,0.00016438,2]
[406624821,1771985450665,-170.300736,0.00016438,2]
[406624822,1771985450674,-170.300734,0.00016438,2]
[406624823,1771985450683,-576.61,0.00016441,2]
[406624824,1771985450693,-462.96054791,0.00016594,2]
[406624825,1771985450702,-361.85708907,0.000166,2]
[406624826,1771985450712,-1000.0,0.0001667,2]
[406624827,1771985450723,-576.61,0.00016685,2]
[406624828,1771985450732,-165.38,0.00016712,2]
[406624829,1771985450741,-642.81462324,0.00016744,2]
[406624830,1771985450752,-2000.0,0.00016744,2]
[406624831,1771985450761,-2000.0,0.00016744,2]
[406624832,1771985450771,-2007.46085169,0.00016744,2]
[406624833,1771985450781,-502.74510936,0.00016744,2]
[406624834,1771985450791,-1020.26898258,0.00016744,2]
[406624835,1771985450800,-513.5946192,0.00016744,2]
[406624836,1771985450809,-2000.0,0.00016744,2]
[406624837,1771985450819,-1758.68287113,0.00016744,2]
[406624838,1771985450829,-2000.0,0.00016744,2]
[406624839,1771985450838,-934.45904873,0.00016744,2]
[406624840,1771985450847,-23951.21763554,0.00016767,2]
[406624841,1771985450856,-200.0,0.00016792,2]
[406624842,1771985450865,-1124.03673989,0.000169,2]
[406624843,1771985450875,-576.61,0.0001693,2]
[406624844,1771985450884,-150.0,0.00016986,2]
[406624845,1771985450893,-151.0,0.00016997,2]
[406624846,1771985450903,-151.0,0.00016997,2]
[406624847,1771985450912,-10827.49436095,0.00017,2]
[406624848,1771985450927,-1931.88998447,0.00017,2]
[406624849,1771985450942,-134796.74880084,0.00017,2]
[406624850,1771985450954,-572.01969778,0.00017,2]
[406624851,1771985450964,-1893.12,0.00017,2]
[406624852,1771985450977,-754.98438634,0.00017,2]
[406624853,1771985464389,417.81706473,0.00045832,120]
[406624854,1771985474310,1000.0,0.00045832,30]
[406624855,1771985547480,500.0,0.00045832,120]
[406624857,1771985711528,-1229.89907085,8.438e-05,2]
[406624858,1771985714446,3016.5,7.5e-05,2]
[406624866,1771985843697,500.0,0.00045832,120]
[406624867,1771985850303,179.31435031,0.00045832,30]
[406624868,1771986135092,500.0,0.00045817,120]
[406624869,1771986135406,532.20646475,0.00045817,120]
[406624870,1771986137280,151.581377,0.00045817,120]
[406624871,1771986143808,500.0,0.00045817,120]
[406624873,1771986309754,239.71094817,0.00045818,30]
[406624874,1771986313039,415.93058298,0.00045818,120]
[406624875,1771986313184,194.14560926,0.00045818,91]
[406624876,1771986320114,227.30645995,0.00045818,120]
[406624877,1771986323769,161.94676858,0.00045818,120]
[406624878,1771986328858,264.40111495,0.00045818,30]
[406624879,1771986336616,5000.0,9e-05,2]
[406624880,1771986338312,1141.66362168,0.00045818,30]
[406624881,1771986366580,500.70683326,0.00045818,30]
[406624882,1771986367284,167.17579425,0.00045818,60]
[406624883,1771986370486,308.78103604,0.00045818,120]
[406624884,1771986378375,339.59053391,0.00045818,120]
[406624885,1771986428875,310.41341393,0.00045818,60]
[406624890,1771986438728,1200.0,9.7e-05,3]
[406624893,1771986440779,2500.0,9.8e-05,3]
[406624894,1771986442861,3700.0,9.9e-05,3]
[406624897,1771986443972,500.0,0.00045818,120]
[406624898,1771986445014,5000.0,0.0001,3]
[406624901,1771986465336,315.51542202,0.00045818,120]
[406624902,1771986467715,7804.5820717,0.00045818,120]
[406624903,1771986471746,172.61378034,0.00045818,120]
[406624905,1771986500755,192.80196992,0.00045818,120]
[406624906,1771986502691,169.88583429,0.00045818,120]
[406624907,1771986503102,153.89290335,0.00045818,120]
[406624908,1771986503310,1416.07088186,0.00045818,120]
[406624909,1771986504215,167.74816818,0.00045818,30]
[406624910,1771986504264,161.85766351,0.00045818,120]
[406624911,1771986504303,3178.4171677,0.00045818,30]
[406624912,1771986504363,287.93295377,0.00045818,120]
[406624913,1771986505517,373.15980441,0.00045818,30]
[406624916,1771986506943,743.73737103,0.00045818,120]
[406624917,1771986507788,297.4073801,0.00045818,30]
[406624918,1771986508676,277.70884508,0.00045818,120]
[406624919,1771986510595,194.979824,0.00045818,120]
[406624920,1771986511096,177.63235677,0.00045818,120]
[406624921,1771986512044,150.45667996,0.00045818,30]
[406624923,1771986512535,437.76661772,0.00045818,30]
[406624924,1771986513316,2221.58895566,0.00045818,30]
[406624927,1771986516028,165.1045722,0.00045818,30]
[406624928,1771986516323,370.40500832,0.00045818,120]
[406624929,1771986517119,155.84049404,0.00045818,30]
[406624931,1771986517620,607.98422498,0.00045818,30]
[406624934,1771986519172,153.47525715,0.00045818,120]
[406624935,1771986519754,453.3275022,0.00045818,120]
[406624937,1771986521945,227.36738565,0.00045818,120]
[406624940,1771986524770,164.70392823,0.00045818,120]
[406624941,1771986525903,8900.7974278,0.00045818,90]
[406624949,1771986548473,753.60092915,7.945e-05,2]
[406624968,1771986631860,-644.83,7.944e-05,2]
[406624973,1771986631914,-555.17,7.944e-05,2]
[406624974,1771986631924,-1983.76798931,7.945e-05,2]
[406624975,1771986631970,-7616.14936754,7.945e-05,2]
[406624976,1771986631979,-2832.625668,8.178e-05,2]
[406624977,1771986631989,-1680.0,8.739e-05,2]
[406624978,1771986631998,-14439.79,8.938e-05,2]
[406624979,1771986632008,-300.0,9.514e-05,2]
[406624980,1771986632017,-300.0,9.514e-05,2]
[406624981,1771986632027,-819.9327139,9.515e-05,2]
[406624982,1771986632036,-250.0,9.563e-05,2]
[406624983,1771986632046,-227.964,9.588e-05,2]
[406624984,1771986632055,-2165.903,9.588e-05,2]
[406624985,1771986632064,-819.9327139,9.6e-05,2]
[406624986,1771986632073,-2351.0,9.612e-05,2]
[406624987,1771986632082,-250.0,9.614e-05,2]
[406624988,1771986632091,-150.0,9.682e-05,2]
[406624989,1771986632100,-332.9363957,9.683e-05,2]
[406624990,1771986632109,-500.0,9.683e-05,2]
[406624991,1771986632117,-500.0,9.683e-05,2]
[406624992,1771986632126,-500.0,9.683e-05,2]
[406624993,1771986632135,-250.44898937,9.683e-05,2]
[406624994,1771986632144,-500.0,9.683e-05,2]
[406624995,1771986632153,-500.0,9.683e-05,2]
[406624996,1771986632163,-500.0,9.683e-05,2]
[406624997,1771986632171,-500.0,9.683e-05,2]
[406624998,1771986632181,-500.0,9.683e-05,2]
[406624999,1771986632190,-500.0,9.683e-05,2]
[406625000,1771986632199,-500.0,9.683e-05,2]
[406625001,1771986632207,-312.68061727,9.683e-05,2]
[406625002,1771986632216,-500.0,9.683e-05,2]
[406625003,1771986632226,-500.0,9.683e-05,2]
[406625004,1771986632235,-500.0,9.683e-05,2]
[406625005,1771986632244,-500.0,9.683e-05,2]
[406625006,1771986632253,-405.09920735,9.683e-05,2]
[406625007,1771986632263,-915.97,9.683e-05,2]
[406625009,1771986632272,-2500.0,9.684e-05,2]
[406625011,1771986632281,-263393.94094788,9.684e-05,2]
[406625014,1771986632294,-15443.69094163,9.684e-05,2]
[406625025,1771986638030,-3855.85335892,9.684e-05,2]
[406625026,1771986638042,-17585.3958712,9.684e-05,2]
[406625027,1771986638054,-14161.79383668,9.684e-05,2]
[406625028,1771986638085,500.0,0.00045818,30]
[406625029,1771986638098,-1634.19576043,9.684e-05,2]
[406625030,1771986638110,-13388.66130458,9.684e-05,2]
[406625031,1771986638241,500.0,0.00045818,30]
[406625032,1771986638475,500.0,0.00045818,30]
[406625033,1771986638753,500.0,0.00045818,30]
[406625034,1771986639007,500.0,0.00045818,30]
[406625035,1771986639253,500.0,0.00045818,30]
[406625036,1771986639484,500.0,0.00045818,30]
[406625037,1771986639720,500.0,0.00045818,30]
[406625042,1771986640143,500.0,0.00045818,30]
[406625043,1771986640159,-814.09302156,9.684e-05,2]
[406625044,1771986640187,500.0,0.00045818,30]
[406625045,1771986640433,500.0,0.00045818,30]
[406625046,1771986640587,-1066.51228538,9.684e-05,2]
[406625047,1771986640717,365.92286675,0.00045818,30]
[406625053,1771986643267,-1650.0,9.684e-05,2]
[406625054,1771986643278,-38218.8108749,9.684e-05,2]
[406625055,1771986643291,-460517.86649406,9.684e-05,2]
[406625056,1771986643303,-331224.99999984,9.684e-05,2]
[406625057,1771986643314,-6447.22708204,9.684e-05,2]
[406625058,1771986643325,-1014.25239722,9.684e-05,2]
[406625059,1771986643336,-998.9063611,9.684e-05,2]
[406625060,1771986643348,-11464.46976567,9.684e-05,2]
[406625061,1771986643360,-9384.62838452,9.684e-05,2]
[406625062,1771986643371,-6456.76566377,9.684e-05,2]
[406625063,1771986643382,-9219.2,9.684e-05,2]
[406625064,1771986643393,-2833.845,9.684e-05,2]
[406625065,1771986643405,-358.22572657,9.684e-05,2]
[406625066,1771986643416,-393.03903894,9.684e-05,2]
[406625073,1771986645842,-558301.54600239,9.684e-05,2]
[406625074,1771986646159,-90749.13277663,9.684e-05,2]
[406625075,1771986646173,-4415.19972896,9.684e-05,2]
[406625076,1771986646187,-5819.39731802,9.684e-05,2]
[406625077,1771986646200,-6963.88419582,9.684e-05,2]
[406625078,1771986646212,-480.61394915,9.684e-05,2]
[406625079,1771986646223,-129428.00517527,9.684e-05,2]
[406625080,1771986646235,-93347.1939985,9.684e-05,2]
[406625081,1771986646247,-12678.21375174,9.684e-05,2]
[406625082,1771986646259,-808.00460389,9.684e-05,2]
[406625083,1771986646270,-18540.34989282,9.684e-05,2]
[406625084,1771986646282,-904.64662748,9.684e-05,2]
[406625085,1771986646295,-7675.14972081,9.684e-05,2]
[406625086,1771986646306,-3036.93821622,9.684e-05,2]
[406625087,1771986646322,-11277.81555068,9.684e-05,2]
[406625088,1771986670215,216.83,0.00045818,120]
[406625089,1771986687687,500.0,0.00045818,120]
[406625090,1771986687911,322.33880125,0.00045818,120]
[406625091,1771986734230,225.69120391,0.00045818,120]
[406625092,1771986848959,598.02069976,0.00045821,120]
[406625094,1771986978404,183.48,9.054e-05,3]
[406625095,1771987197289,1000.0,0.00045821,30]
[406625096,1771987197399,1430.68,5.294e-05,2]
[406625097,1771987197606,1430.68,5.48e-05,2]
[406625098,1771987197828,1000.0,0.00045821,30]
[406625099,1771987197858,1430.68,5.666e-05,2]
[406625100,1771987198052,1430.68,5.852e-05,2]
[406625101,1771987198255,1430.68,6.037e-05,2]
[406625102,1771987198425,1000.0,0.00045821,30]
[406625103,1771987198453,1430.68,6.223e-05,2]
[406625104,1771987198662,1415.93,6.409e-05,2]
[406625105,1771987198683,14.75,6.409e-05,2]
[406625106,1771987198886,1430.68,6.595e-05,2]
[406625107,1771987199094,1000.0,0.00045821,30]
[406625108,1771987199122,1430.68,6.781e-05,2]
[406625109,1771987199290,1430.68,6.966e-05,2]
[406625110,1771987199486,1430.68,7.152e-05,2]
[406625111,1771987199515,1000.0,0.00045821,30]